bitfinex/quotes_ETHUSD_20220105
["timestamp","ask_amount","ask_price","bid_price","bid_amount"]
[1641412341656,0.45684906,3662.1,3661.4,15.75397897]
[1641412341857,0.45684906,3662.1,3661.4,16.11259127]
[1641412342059,0.00170527,3662.4,3661.5,7.63642612]
[1641412342256,0.00170527,3662.4,3662.0,0.68229]
[1641412342457,0.00113684,3662.3,3662.0,0.68229]
[1641412342657,3.684e-05,3662.3,3662.1,17.08029652]
[1641412342859,0.37,3662.5,3662.1,17.40829652]
[1641412342860,5.27e-06,3662.5,3662.1,17.40829652]
[1641412343100,3.30470898,3663.1,3662.4,0.01222198]
[1641412343301,3.30470898,3663.1,3662.5,0.328]
[1641412343504,5.3845707,3664.2,3663.1,0.68206]
[1641412343705,5.3845707,3664.2,3663.2,1.39912198]
[1641412343901,5.3845707,3664.2,3663.2,1.41183161]
[1641412343902,0.00341054,3663.6,3663.2,1.41183161]
[1641412344101,0.00341054,3663.6,3663.2,1.72712198]
[1641412344304,0.00284211,3663.5,3663.2,1.72712198]
[1641412344503,0.00284211,3663.5,3663.2,2.02712198]
[1641412344703,4.02712069,3664.6,3663.2,2.02712198]
[1641412344704,0.00227369,3663.4,3663.2,2.02712198]
[1641412345204,4.02712069,3664.6,3663.2,18.53809391]
[1641412345205,3.88892072,3664.6,3663.2,18.53809391]
[1641412345404,3.88892072,3664.6,3663.5,0.54556]
[1641412345606,0.00682108,3664.5,3663.7,15.75]
[1641412345803,53.15065168,3664.8,3664.0,1.4090605]
[1641412346004,53.15065168,3664.8,3664.1,0.328]
[1641412346309,0.00113685,3664.7,3664.2,0.00170527]
[1641412346504,0.00113685,3664.7,3664.3,1.00989]
[1641412346719,18.10193166,3664.8,3664.4,7.6]
[1641412346951,3.8457418,3666.1,3664.7,1.0]
[1641412346952,0.7125133,3666.1,3664.7,1.0]
[1641412347152,5.07777463,3667.0,3665.8,7.55]
[1641412347357,5.3845707,3666.7,3666.1,4.13379941]
[1641412347555,6.86123735,3667.2,3666.6,4.35]
[1641412347753,6.86123735,3667.2,3667.0,0.01228086]
[1641412347959,6.63995796,3667.2,3667.1,5.7819]
[1641412348159,8.42320556,3667.8,3667.1,5.7819]
[1641412348160,3.44825962,3667.7,3667.1,5.7819]
[1641412348356,8.42320556,3667.8,3667.1,5.7819]
[1641412348357,2.41421058,3667.2,3667.1,5.7819]
[1641412348758,4.8,3667.2,3667.1,5.7819]
[1641412349357,2.4,3667.2,3667.1,5.7819]
[1641412349757,0.0170527,3667.7,3667.1,5.7819]
[1641412349958,0.0170527,3667.7,3667.1,6.3819]
[1641412350160,5.63829916,3668.5,3667.2,5.3]
[1641412350161,0.13819997,3668.5,3667.2,5.3]
[1641412350360,0.56602604,3669.4,3667.3,0.328]
[1641412350597,0.00397896,3668.3,3667.4,0.3]
[1641412350801,0.00397896,3668.3,3667.5,0.328]
[1641412351004,3.6225,3669.5,3667.6,0.68128]
[1641412351005,0.00341054,3668.2,3667.6,0.68128]
[1641412351201,0.00341054,3668.2,3667.7,0.328]
[1641412351402,0.01280332,3669.5,3668.0,10.498]
[1641412351609,8.42320556,3670.2,3668.0,10.52953799]
[1641412351804,0.00738951,3669.4,3668.1,2.49252686]
[1641412352004,8.42320556,3670.2,3668.5,4.37038]
[1641412352211,9.6105637,3671.2,3669.5,2.598]
[1641412352212,3.30360636,3669.9,3669.5,2.598]
[1641412352406,4.53278907,3671.2,3669.8,0.13616]
[1641412352407,0.00397896,3670.1,3669.8,0.13616]
[1641412352603,0.00397896,3670.1,3669.9,0.328]
[1641412352802,4.53278907,3671.2,3669.3,0.0121471]
[1641412352803,7.60341054,3670.0,3669.3,0.0121471]
[1641412353004,7.60341054,3670.0,3668.6,0.00454739]
[1641412353201,7.60341054,3670.0,3668.6,0.68566739]
[1641412353202,0.00284212,3669.9,3668.6,0.68566739]
[1641412353408,7.6,3669.8,3668.2,5.4523]
[1641412353607,0.01220365,3669.3,3668.2,5.4523]
[1641412353807,1.2231249,3669.1,3668.8,2.77665335]
[1641412354008,38.77162064,3669.1,3668.8,2.77665335]
[1641412354214,0.0022737,3669.0,3668.8,2.77665335]
[1641412354450,0.0022737,3669.0,3668.8,2.81025495]
[1641412354647,34.73205139,3669.1,3668.9,0.48896229]
[1641412354846,1.56937059,3669.1,3669.0,12.5511]
[1641412355049,8.70947463,3672.2,3670.0,3.1]
[1641412355249,8.70947463,3672.2,3670.6,0.68063]
[1641412355250,5.07777463,3672.2,3670.6,0.68063]
[1641412355451,5.07777463,3672.2,3671.1,0.01205313]
[1641412355648,56.29520441,3672.3,3671.1,0.34005313]
[1641412355649,3.44825962,3671.7,3671.1,0.34005313]
[1641412355853,3.44825962,3671.7,3670.5,0.27226]
[1641412355854,6.91023181,3671.5,3670.5,0.27226]
[1641412356054,6.91023181,3671.5,3669.9,1.9936]
[1641412356055,3.44825962,3671.4,3669.9,1.9936]
[1641412356452,6.77992343,3671.5,3669.0,5.5535]
[1641412356653,0.01263859,3671.2,3670.0,0.0073895]
[1641412356855,0.01263859,3671.2,3669.1,4.94906391]
[1641412356856,50.07738911,3670.6,3669.2,0.03060161]
[1641412357054,50.07738911,3670.6,3669.2,0.12473689]
[1641412357255,50.07738911,3670.6,3669.3,0.01136846]
[1641412357754,50.07738911,3670.6,3669.3,0.49535178]
[1641412357954,51.1316906,3670.6,3669.5,1.11027807]
[1641412358202,0.66268278,3670.0,3669.5,1.11027807]
[1641412358403,51.1316906,3670.6,3669.6,0.11206319]
[1641412358602,51.1316906,3670.6,3669.6,0.00966319]
[1641412358603,50.07738911,3670.6,3669.6,0.00966319]
[1641412358802,50.07738911,3670.6,3669.7,0.00909477]
[1641412359003,50.07738911,3670.6,3669.6,0.00966319]
[1641412359408,50.07738911,3670.6,3669.6,6.319e-05]
[1641412359605,50.07738911,3670.6,3669.5,0.01023162]
[1641412359606,0.00505262,3670.5,3669.5,0.01023162]
[1641412359803,3.38099862,3670.5,3669.3,0.25176846]
[1641412360003,3.38099862,3670.5,3669.2,2.77420081]
[1641412360004,0.01206949,3669.5,3669.2,0.18500085]
[1641412360204,0.65040697,3669.4,3669.0,2.48610085]
[1641412360407,1.07260928,3669.3,3669.0,8.5e-07]
[1641412360606,2.80992039,3669.2,3669.1,5.27e-06]
[1641412360806,2.80992039,3669.2,3668.9,1.18672531]
[1641412361009,2.80992039,3669.2,3668.8,1.0]
[1641412361208,2.80992039,3669.2,3667.8,1.18672531]
[1641412361511,2.80992039,3669.2,3667.2,4.62366801]
[1641412361518,0.01211762,3668.3,3667.2,4.62366801]
[1641412361710,0.01211762,3668.3,3665.9,0.01250756]
[1641412361711,0.328,3668.2,3667.9,0.00568423]
[1641412362250,0.01211762,3668.3,3666.8,0.11513689]
[1641412362452,0.01211762,3668.3,3666.8,0.01193689]
[1641412362650,0.01211762,3668.3,3666.7,0.04090523]
[1641412362651,0.01211762,3668.3,3666.9,0.01136847]
[1641412362851,0.01211762,3668.3,3666.8,0.01193689]
[1641412363254,0.328,3668.2,3666.7,0.01250531]
[1641412363452,4.16728148,3668.1,3666.7,0.01250531]
[1641412363653,1.24465488,3668.1,3666.7,0.01250531]
[1641412364052,2.9226266,3668.0,3666.7,0.01250531]
[1641412364252,2.9226266,3668.0,3666.6,0.62908067]
[1641412364253,0.01217192,3667.8,3666.6,0.00253067]
[1641412364556,0.01217192,3667.8,3665.0,0.214271]
[1641412364557,7.60568423,3667.7,3665.0,0.214271]
[1641412364758,0.01275755,3667.0,3665.0,0.108671]
[1641412364953,0.01275755,3667.0,3665.2,0.00852636]
[1641412365156,0.48939192,3666.3,3665.5,1.3250306]
[1641412365454,0.48939192,3666.3,3665.6,0.00625266]
[1641412365903,7.6,3666.1,3665.0,0.00012366]
[1641412366104,0.328,3666.0,3665.0,0.00012366]
[1641412366302,0.328,3666.0,3665.1,0.00284212]
[1641412366303,0.1889829,3666.0,3665.1,0.00284212]
[1641412366501,0.63923703,3665.3,3665.1,0.00284212]
[1641412366707,0.00170527,3665.9,3665.1,0.00284212]
[1641412366905,0.00170527,3665.9,3664.7,1.30259216]
[1641412367107,3.9451,3666.0,3664.8,0.00454739]
[1641412367108,0.00113684,3665.8,3664.8,0.00454739]
[1641412367510,0.00170527,3665.9,3664.8,0.00454739]
[1641412367907,5.28794505,3666.0,3664.8,0.00454739]
[1641412367908,0.00113684,3665.8,3664.8,0.00454739]
[1641412368110,0.00113684,3665.8,3664.1,0.00852635]
[1641412368306,3.9451,3666.0,3664.1,0.14532635]
[1641412368307,0.00170527,3665.9,3664.1,0.14532635]
[1641412368507,6.8677266,3666.0,3663.8,0.14543162]
[1641412368508,6.81943187,3666.0,3663.8,0.14543162]
[1641412368708,6.81943187,3666.0,3664.3,1.36368]
[1641412368908,4.2472927,3665.9,3664.3,1.36368]
[1641412369108,4.2472927,3665.9,3663.7,0.38112764]
[1641412369109,4.2472927,3665.9,3664.4,0.00852635]
[1641412369349,1.24465488,3665.0,3664.4,0.00852635]
[1641412369557,1.24465488,3665.0,3664.2,0.0096632]
[1641412369855,0.63443581,3664.8,3664.2,0.0096632]
[1641412370052,0.63443581,3664.8,3664.2,1.11303552]
[1641412370253,1.24465488,3664.7,3664.2,1.11303552]
[1641412370454,1.24465488,3664.7,3664.3,0.00909478]
[1641412370653,1.24465488,3664.7,3664.3,9.478e-05]
[1641412370654,4.16728148,3664.7,3664.3,9.478e-05]
[1641412370860,4.16728148,3664.7,3662.9,0.68215]
[1641412370861,0.01207254,3664.5,3663.8,0.00293689]
[1641412371055,0.01207254,3664.5,3663.6,0.00407374]
[1641412371258,0.01207254,3664.5,3663.0,0.00748428]
[1641412371259,0.52324465,3663.7,3663.0,0.00748428]
[1641412371454,0.52324465,3663.7,3662.9,0.00405271]
[1641412371455,0.53573215,3663.7,3662.9,0.00405271]
[1641412371657,0.52324465,3663.7,3662.7,0.00518955]
[1641412371856,2.9226266,3664.2,3663.5,1.39329128]
[1641412372060,2.9226266,3664.2,3663.1,0.00161255]
[1641412372258,2.9226266,3664.2,3662.2,0.12723167]
[1641412372259,7.6,3664.0,3662.2,0.00803167]
[1641412372461,7.6,3664.0,3661.4,1.0]
[1641412372462,3.26301083,3663.9,3663.2,4.744e-05]
[1641412372756,3.26301083,3663.9,3661.5,0.00971063]
[1641412372757,1.24465488,3663.1,3661.5,0.00971063]
[1641412372958,0.67103625,3662.4,3661.5,0.00971063]
[1641412373405,2.9226266,3662.3,3661.7,1.9936]
[1641412373603,2.9226266,3662.3,3661.7,0.14138937]
[1641412373604,0.01278431,3662.2,3661.7,0.14138937]
[1641412373807,0.01278431,3662.2,3661.7,9.473e-05]
[1641412374006,0.00170527,3662.1,3661.7,9.473e-05]
[1641412374407,0.01278431,3662.2,3661.7,9.473e-05]
[1641412374408,0.32913684,3662.0,3661.7,9.473e-05]
[1641412374611,3.2506266,3661.9,3661.7,9.473e-05]
[1641412374810,3.2506266,3661.9,3659.5,6.17194514]
[1641412374811,1.32329455,3660.2,3659.5,6.17194514]
[1641412375013,0.59300805,3660.1,3659.5,6.17194514]
[1641412375208,0.59300805,3660.1,3659.6,0.01250532]
[1641412375607,7.6,3660.0,3659.6,5.32e-06]
[1641412375808,8.72353792,3659.2,3659.0,7.81839117]
[1641412376009,7.6,3659.2,3659.0,0.108813]
[1641412376209,7.928,3659.2,3659.1,5.00284212]
[1641412376411,7.59995788,3659.1,3659.0,0.204804]
[1641412376609,7.61199311,3659.1,3656.5,1.0]
[1641412376866,2.9226266,3659.0,3656.5,1.0]
[1641412377065,2.9226266,3659.0,3656.6,0.01421058]
[1641412377066,1.38307138,3657.6,3656.6,0.01421058]
[1641412377265,0.328,3658.7,3656.6,0.01421058]
[1641412377468,0.328,3658.7,3656.6,0.02679882]
[1641412377668,10.42773968,3659.1,3656.6,0.14279882]
[1641412377865,10.42773968,3659.1,3656.7,0.01364216]
[1641412378268,1.00785009,3658.5,3657.3,1.10216026]
[1641412378668,10.42773968,3659.1,3657.4,0.0096632]
[1641412378865,0.09729474,3659.2,3657.4,0.0096632]
[1641412378866,55.3129965,3659.3,3657.4,0.0096632]
[1641412379065,55.3129965,3659.3,3657.6,0.012255]
[1641412379365,41.17314924,3659.3,3657.7,0.00795793]
[1641412379567,41.17314924,3659.3,3658.1,1.38623537]
[1641412379766,41.17314924,3659.3,3658.2,0.68309]
[1641412379966,41.17314924,3659.3,3658.2,0.68820581]
[1641412380175,41.17314924,3659.3,3658.3,0.11174739]
[1641412380367,41.17314924,3659.3,3658.3,0.10854739]
[1641412380368,0.68029073,3659.2,3658.3,0.10854739]
[1641412380608,41.17314924,3659.3,3658.4,0.00397896]
[1641412380807,35.71009924,3659.3,3658.8,0.68294]
[1641412381107,0.09900001,3659.9,3658.9,0.00113684]
[1641412381307,0.09900001,3659.9,3659.3,1.30656851]
[1641412381511,1.35647585,3660.2,3659.3,1.30656851]
[1641412381713,0.13819997,3660.2,3659.3,1.30656851]
[1641412381912,38.88436376,3660.5,3659.5,0.68284]
[1641412381913,0.00170527,3660.1,3659.5,0.68284]
[1641412382315,38.88436376,3660.5,3659.7,6.75]
[1641412382517,38.88436376,3660.5,3659.7,7.08859694]
[1641412382719,24.70743746,3660.5,3659.9,7.6]
[1641412383016,3.24873568,3661.5,3660.5,5.85]
[1641412383019,5.95573358,3661.4,3660.5,5.85]
[1641412383215,5.95573358,3661.4,3661.2,0.11989787]
[1641412383416,0.49622358,3661.4,3661.2,0.11989787]
[1641412383715,4.0609196,3662.0,3661.3,0.1064]
[1641412383922,2.8277818,3661.9,3661.2,0.11989787]
[1641412384118,0.01250052,3661.3,3661.2,9.787e-05]
[1641412384556,0.00511581,3661.3,3661.2,9.787e-05]
[1641412386364,0.00511581,3661.3,3661.2,4.28800287]
[1641412386365,7.6,3661.3,3661.2,4.28800287]
[1641412386563,7.6,3661.3,3660.4,4.63302789]
[1641412386564,3.01163411,3661.2,3660.4,4.63302789]
[1641412386863,2.8277818,3661.1,3660.5,0.00454739]
[1641412387063,0.55517166,3660.6,3660.5,0.00454739]
[1641412387265,3.01163411,3661.2,3660.5,0.00454739]
[1641412387671,3.01163411,3661.2,3659.8,0.00852635]
[1641412387873,5.83941591,3661.2,3659.8,0.00852635]
[1641412388116,3.01163411,3661.2,3659.8,0.00852635]
[1641412388318,1.41673904,3660.9,3659.8,0.00852635]
[1641412388723,3.5956618,3660.8,3659.8,2.635e-05]
[1641412388924,3.5956618,3660.8,3659.7,0.00909478]
[1641412389129,0.01236559,3660.2,3659.7,9.478e-05]
[1641412389322,0.01236559,3660.2,3659.1,0.04090523]
[1641412389323,0.01236559,3660.2,3659.1,0.00018088]
[1641412389530,4.71267757,3657.9,3657.8,7.70957817]
[1641412389724,5.22648981,3657.9,3657.8,6.48477817]
[1641412389930,5.22648981,3657.9,3657.8,2.97457821]
[1641412389931,9.22648981,3657.9,3657.8,2.97457821]
[1641412390125,7.6,3657.8,3655.5,11.03702764]
[1641412390323,7.6,3657.8,3655.7,2.99247074]
[1641412390324,7.73819997,3657.8,3655.7,2.99247074]
[1641412390527,7.73819997,3657.8,3657.3,0.00284212]
[1641412390724,0.03430696,3659.5,3657.3,0.00284212]
[1641412390925,0.01299371,3658.3,3657.3,4.212e-05]
[1641412391125,1.0,3657.7,3656.5,0.00738951]
[1641412391325,7.6,3657.3,3654.6,0.01227726]
[1641412391525,7.6,3657.3,3654.5,0.01368168]
[1641412391526,4.00451074,3657.2,3656.3,3.684e-05]
[1641412391735,7.6,3657.0,3654.5,0.01368168]
[1641412391964,0.01234002,3656.1,3654.5,0.01368168]
[1641412392365,3.67660074,3656.8,3654.5,0.01368168]
[1641412392366,8.61835672,3655.8,3655.7,0.00341055]
[1641412392565,7.55,3655.8,3655.7,0.00341055]
[1641412392767,7.55,3655.8,3655.2,0.00625266]
[1641412392966,0.49830194,3655.4,3655.2,0.00625266]
[1641412393568,7.55,3655.8,3655.2,0.00625266]
[1641412393770,7.543,3655.8,3655.2,0.00625266]
[1641412393969,2.99474443,3656.7,3655.3,0.00223243]
[1641412393970,0.00227369,3656.7,3655.3,0.00223243]
[1641412394168,0.00227369,3656.7,3655.3,0.00692562]
[1641412394169,2.299902,3655.7,3655.3,0.00692562]
[1641412394369,2.299902,3655.7,3655.4,0.00511582]
[1641412394570,2.299902,3655.5,3655.4,0.00511582]
[1641412394768,0.52580381,3656.6,3655.1,1.10922144]
[1641412394969,0.00113684,3656.5,3655.1,0.42554144]
[1641412395169,2.299902,3655.8,3655.2,0.00113684]
[1641412395370,1.2155054,3655.8,3655.2,0.00113684]
[1641412395605,0.00170527,3655.7,3655.2,0.00113684]
[1641412395808,1.21721067,3655.7,3655.2,0.00113684]
[1641412396005,1.21664225,3655.6,3655.2,0.00113684]
[1641412396205,2.99247074,3657.2,3655.5,0.01258632]
[1641412396407,3.9703,3658.2,3655.6,7.6]
[1641412396711,3.9703,3658.2,3655.7,0.0022737]
[1641412396712,0.00511581,3657.0,3655.7,0.0022737]
[1641412396909,0.00511581,3657.0,3656.8,1.37413678]
[1641412397110,3.9469,3658.1,3656.8,1.37413678]
[1641412397315,3.9469,3658.1,3656.8,1.40662606]
[1641412397510,1.19311145,3658.6,3656.8,1.40662606]
[1641412397511,43.72549653,3657.3,3657.0,7.6]
[1641412397711,6.00699653,3657.3,3657.1,0.328]
[1641412397910,1.19311145,3658.6,3657.3,6.45]
[1641412397911,6.49559653,3657.7,3657.3,6.45]
[1641412398110,4.0609196,3659.9,3657.7,3.85]
[1641412398313,4.0609196,3659.9,3659.3,0.0128581]
[1641412398512,4.0609196,3659.9,3659.3,0.3408581]
[1641412398513,0.79284793,3659.6,3659.3,0.3408581]
[1641412398711,3.20315437,3660.5,3659.3,0.3408581]
[1641412398712,4.0609196,3661.0,3659.8,0.01244955]
[1641412398911,4.0609196,3661.0,3660.4,0.01215336]
[1641412399112,5.49473658,3661.6,3660.5,0.328]
[1641412399354,5.49473658,3661.6,3661.1,1.36488]
[1641412399562,5.49473658,3661.6,3660.4,0.04740662]
[1641412399563,2.99247074,3661.5,3659.6,0.1112]
[1641412399757,2.99247074,3661.5,3660.0,2.04755]
[1641412399961,0.01136847,3661.4,3660.0,2.08743594]
[1641412400159,0.01136847,3661.4,3659.5,0.15679413]
[1641412400359,0.01136847,3661.4,3659.3,0.328]
[1641412400360,1.11328279,3660.3,3659.3,1.69351]
[1641412400562,1.11328279,3660.3,3658.4,0.01245568]
[1641412400563,1.11328279,3660.3,3658.8,1.0]
[1641412400564,2.99247074,3660.2,3658.8,1.0]
[1641412400762,2.99701813,3660.2,3657.9,0.1477885]
[1641412400974,46.77750769,3659.7,3658.9,4.211e-05]
[1641412401159,46.77750769,3659.7,3658.5,7.72283777]
[1641412401361,0.57803756,3658.7,3658.6,0.00174738]
[1641412401559,0.00393685,3659.6,3658.6,0.00174738]
[1641412401760,0.00393685,3659.6,3658.6,12.49566938]
[1641412401961,0.00336843,3659.5,3658.7,13.086329]
[1641412402159,0.00336843,3659.5,3658.7,16.21584172]
[1641412402357,46.77750769,3659.7,3658.7,11.23521596]
[1641412402358,0.0028,3659.4,3658.7,11.23521596]
[1641412402558,0.55085663,3659.3,3658.8,2.899413]
[1641412402759,0.55085663,3659.3,3658.7,0.00117896]
[1641412402760,0.55308821,3659.3,3658.7,0.00117896]
[1641412402961,0.55308821,3659.3,3658.7,7.896e-05]
[1641412402962,0.00166316,3659.2,3658.7,7.896e-05]
[1641412403226,0.01226128,3658.8,3657.3,1.13819997]
[1641412403422,0.01226128,3658.8,3657.9,0.00454739]
[1641412403626,1.1377785,3658.3,3657.9,0.00454739]
[1641412404022,0.00170527,3659.0,3657.9,0.00454739]
[1641412404223,0.00170527,3659.0,3658.1,0.01233205]
[1641412404421,5.7626,3661.3,3658.1,0.01233205]
[1641412404422,0.00113685,3658.9,3658.1,0.01233205]
[1641412404623,0.00113685,3658.9,3658.2,0.33084212]
[1641412404822,0.00511581,3659.6,3658.2,0.33084212]
[1641412405023,0.49480388,3659.1,3658.3,0.0022737]
[1641412405228,0.49480388,3659.1,3658.3,7.37e-05]
[1641412405424,0.00390527,3659.0,3658.3,7.37e-05]
[1641412405824,0.00390527,3659.0,3658.1,1.054e-05]
[1641412405825,0.00333685,3658.9,3658.1,1.054e-05]
[1641412406026,0.0166866,3658.9,3658.1,1.054e-05]
[1641412406228,0.00396842,3658.8,3658.1,1.054e-05]
[1641412406625,7.6,3658.2,3658.1,1.054e-05]
[1641412406863,0.0034,3658.7,3658.1,1.054e-05]
[1641412407067,0.00453685,3658.9,3658.1,1.054e-05]
[1641412407267,0.00283158,3658.6,3658.1,1.054e-05]
[1641412407467,0.00396842,3658.8,3658.1,1.054e-05]
[1641412407668,0.00226315,3658.5,3658.1,1.054e-05]
[1641412407873,0.0034,3658.7,3658.1,1.054e-05]
[1641412408168,0.00283158,3658.6,3658.1,1.054e-05]
[1641412408368,0.00283158,3658.6,3658.5,3.71285651]
[1641412408568,1.60397903,3660.0,3658.5,5.10446152]
[1641412408771,1.60397903,3660.0,3659.4,1.34194507]
[1641412408971,41.3245535,3659.7,3659.4,1.37297213]
[1641412409170,41.2814535,3659.7,3659.5,0.1288]
[1641412409372,39.5264535,3659.7,3659.5,0.124]
[1641412409572,39.5264535,3659.7,3659.6,0.328]
[1641412409573,28.6047635,3659.7,3659.6,0.328]
[1641412409870,1.20600555,3660.7,3659.6,0.7664]
[1641412410071,1.20600555,3660.7,3660.1,0.68259]
[1641412410278,0.00568423,3660.6,3660.2,0.328]
[1641412410470,0.00568423,3660.6,3660.2,0.4616]
[1641412410712,43.11650828,3661.4,3660.3,0.1296]
[1641412410713,0.00511581,3660.5,3660.3,0.1296]
[1641412410911,43.11650828,3661.4,3660.6,1.36488]
[1641412411113,0.00227369,3660.9,3660.8,2.46316156]
[1641412411315,43.11650828,3661.4,3660.8,2.83084944]
[1641412411512,39.17105506,3661.4,3660.9,5.7631]
[1641412411712,36.44297504,3661.4,3661.0,0.35894543]
[1641412411912,1.20600555,3662.8,3661.4,3.55]
[1641412412113,1.20600555,3662.8,3662.6,0.01278511]
[1641412412311,1.20600555,3662.8,3662.5,0.328]
[1641412412312,5.4,3662.7,3662.5,0.328]
[1641412412513,5.4,3662.7,3662.0,0.328]
[1641412412812,5.4,3662.7,3661.5,6.50088601]
[1641412412814,0.0073895,3662.6,3661.5,6.50088601]
[1641412413013,0.0073895,3662.6,3661.6,0.328]
[1641412413213,1.10139726,3662.5,3661.6,0.4416]
[1641412413413,0.00682108,3662.5,3661.7,0.1224]
[1641412413614,0.00625266,3662.4,3661.8,0.35429144]
[1641412413814,0.00625266,3662.4,3661.9,0.328]
[1641412414012,0.00568423,3662.3,3662.0,0.328]
[1641412414214,55.37404273,3663.1,3662.1,1.36419]
[1641412414482,55.37404273,3663.1,3662.6,1.68208]
[1641412414683,2.85645354,3663.0,3662.7,0.2552]
[1641412414882,7.61254243,3662.9,3662.3,0.1056]
[1641412415079,7.61595297,3662.9,3662.2,3.66227569]
[1641412415278,0.68346704,3662.8,3662.2,3.66227569]
[1641412415480,1.04681452,3662.4,3662.2,3.66227569]
[1641412415879,7.6,3662.3,3662.2,3.66227569]
[1641412416579,7.6,3662.3,3662.1,0.00113684]
[1641412416580,0.34992431,3662.2,3662.1,3.684e-05]
[1641412416980,0.34992431,3662.2,3661.4,0.00401581]
[1641412417180,0.01278502,3661.5,3660.9,0.00685793]
[1641412417381,0.01278502,3661.5,3660.5,0.00913162]
[1641412417582,0.01278502,3661.5,3660.0,4.66481712]
[1641412417583,0.34992431,3662.2,3661.0,12.226027]
[1641412417783,0.34992431,3662.2,3661.5,1.29175284]
[1641412418113,1.01179251,3662.2,3661.6,0.00287896]
[1641412419110,1.01179251,3662.2,3661.6,7.896e-05]
[1641412419310,1.01179251,3662.2,3660.5,4.66860133]
[1641412419311,2.96217013,3662.1,3660.7,0.00799477]
[1641412419512,0.01206313,3661.8,3660.6,0.0057632]
[1641412420110,1.14460718,3661.7,3660.6,0.0057632]
[1641412420312,3.80546163,3661.6,3659.9,0.00974216]
[1641412420910,0.6829,3661.5,3659.9,0.00974216]
[1641412421111,2.68007054,3661.4,3659.9,0.00974216]
[1641412421315,0.01261269,3660.9,3659.9,0.00974216]
[1641412421518,0.01261269,3660.9,3659.0,4.63467815]
[1641412421519,1.09604766,3660.0,3659.5,0.01201585]
[1641412421957,0.01261269,3660.9,3659.1,0.01428955]
[1641412422159,1.36601,3661.5,3659.1,0.01428955]
[1641412422160,2.69372324,3661.1,3659.1,0.01428955]
[1641412422362,1.21825607,3661.9,3659.1,0.01428955]
[1641412422363,0.57851879,3660.4,3659.1,0.01428955]
[1641412422762,0.57851879,3660.4,3659.5,1.09620987]
[1641412422962,0.57851879,3660.4,3659.1,0.01428955]
[1641412423163,0.57851879,3660.4,3659.6,0.01144743]
[1641412423365,0.51992336,3659.7,3659.0,0.01485797]
[1641412423763,0.51992336,3659.7,3658.7,0.01656324]
[1641412423964,0.51992336,3659.7,3659.2,1.20772307]
[1641412424370,0.51992336,3659.7,3659.3,5.27e-05]
[1641412424568,0.51992336,3659.7,3658.6,3.29673085]
[1641412424765,0.68338,3659.3,3658.8,0.00284212]
[1641412424965,0.68338,3659.3,3658.8,4.212e-05]
[1641412425168,0.54792129,3659.4,3658.8,4.212e-05]
[1641412425370,0.54792129,3659.4,3658.7,0.00284212]
[1641412425609,0.13819997,3659.6,3658.9,0.00139761]
[1641412426009,0.13819997,3659.6,3659.0,3.685e-05]
[1641412426010,0.00170527,3659.5,3659.0,3.685e-05]
[1641412426210,7.6,3659.4,3657.6,0.13819997]
[1641412426409,7.6,3659.4,3656.7,0.13667303]
[1641412426410,0.01223358,3658.9,3656.7,0.13667303]
[1641412426611,0.01223358,3658.9,3656.5,6.17957086]
[1641412426612,0.01223358,3658.9,3657.7,0.00738951]
[1641412426814,0.68343,3658.8,3657.7,0.00738951]
[1641412427012,1.08236424,3658.1,3656.6,0.01364216]
[1641412427216,1.08236424,3658.1,3656.6,0.04999024]
[1641412427413,1.08236424,3658.1,3656.6,0.01364216]
[1641412427614,1.08236424,3658.1,3656.7,0.01307374]
[1641412427812,1.08236424,3658.1,3656.5,6.17957086]
[1641412427813,7.6,3657.9,3656.5,6.1426446]
[1641412428213,0.62826024,3657.1,3656.2,6.1426446]
[1641412428612,0.00170527,3657.0,3656.3,0.00227369]
[1641412428817,0.68544527,3657.0,3656.3,0.00227369]
[1641412429012,2.05076,3659.0,3656.3,0.00227369]
[1641412429214,6.54395876,3658.9,3656.3,0.11197896]
[1641412429466,0.00113685,3657.2,3657.1,0.01288664]
[1641412429662,0.00113685,3657.2,3656.4,0.00341054]
[1641412429862,0.00113685,3657.2,3657.0,1.27264388]
[1641412430064,0.00113685,3657.2,3657.0,1.57264388]
[1641412430665,0.00113685,3657.2,3657.0,0.3]
[1641412430868,0.00113685,3657.2,3656.7,0.3]
[1641412431167,0.00113685,3657.2,3656.8,0.00113685]
[1641412431367,7.6,3657.1,3655.6,0.68357]
[1641412431569,7.60170527,3657.1,3656.6,4.63787431]
[1641412431766,2.74235876,3657.6,3656.6,5.98309674]
[1641412431767,0.00113685,3657.0,3656.6,5.98309674]
[1641412432266,0.00397897,3657.5,3656.6,5.98309674]
[1641412432667,0.00341054,3657.4,3656.6,1.34522243]
[1641412433103,0.5400815,3657.7,3656.6,1.34522243]
[1641412433104,0.00284212,3657.3,3656.6,1.34522243]
[1641412433513,0.0022737,3657.2,3656.6,1.34522243]
[1641412433907,0.00170527,3657.1,3656.6,1.64522243]
[1641412434308,0.00113685,3657.0,3656.6,1.64522243]
[1641412434513,0.00113685,3657.0,3656.6,1.67957281]
[1641412434711,0.00682108,3658.0,3656.6,1.64522243]
[1641412435109,0.64352772,3658.3,3656.6,1.67827704]
[1641412435110,0.00625266,3657.9,3656.6,1.67827704]
[1641412435310,0.59978038,3658.3,3656.6,1.67827704]
[1641412435512,1.03406666,3657.9,3657.4,0.13252933]
[1641412435713,1.03406666,3657.9,3656.3,4.74267431]
[1641412435714,1.34520135,3656.6,3656.3,4.74267431]
[1641412435913,1.34520135,3656.6,3655.2,7.75868725]
[1641412435914,7.6,3656.4,3655.2,5.53530315]
[1641412436112,7.50896301,3656.2,3655.1,0.42554144]
[1641412436318,2.74235876,3656.1,3655.1,0.42554144]
[1641412436513,2.74235876,3656.1,3655.2,0.00852635]
[1641412436712,0.01211523,3655.6,3655.2,2.635e-05]
[1641412436974,0.01211523,3655.6,3654.5,0.01368168]
[1641412436975,0.49333941,3655.4,3654.5,0.01368168]
[1641412437185,3.56473873,3655.3,3654.5,0.01368168]
[1641412437378,3.56473873,3655.3,3654.6,1.054e-05]
[1641412437677,3.56473873,3655.3,3653.7,0.14742429]
[1641412437678,7.6,3655.0,3653.7,0.14742429]
[1641412437876,0.68438,3654.4,3653.7,0.13020499]
[1641412438077,3.80597164,3654.3,3653.8,0.00454739]
[1641412438281,0.54584658,3654.2,3653.7,0.03475238]
[1641412438479,0.54584658,3654.2,3652.7,0.109039]
[1641412438480,7.6,3654.1,3652.7,0.109039]
[1641412438682,7.60170527,3654.1,3652.7,0.109039]
[1641412438883,0.00113685,3654.0,3653.5,0.00170527]
[1641412439083,0.00113685,3654.0,3652.7,0.09790141]
[1641412439282,0.00227369,3653.9,3652.7,0.09790141]
[1641412439482,0.52121978,3653.4,3652.8,1.26676335]
[1641412439685,2.74235876,3654.1,3652.8,1.26676335]